bitfinex-derivatives/quotes_SOLF0:USTF0_20250514
["timestamp","ask_amount","ask_price","bid_price","bid_amount"]
[1747243089313,67.38,174.44,174.34,1.9545]
[1747243090110,67.38,174.44,174.41,5.7325]
[1747243090312,67.38,174.44,174.34,1.9545]
[1747243090913,1.9286,174.47,174.34,1.9545]
[1747243091111,67.44,174.46,174.34,85.81552427]
[1747243091314,67.4,174.46,174.34,85.81552427]
[1747243091615,1.8617,174.49,174.34,85.81552427]
[1747243091815,1.8617,174.49,174.48,5.7304]
[1747243092012,69.3417,174.49,174.48,5.7304]
[1747243092213,67.46,174.5,174.4,67.36]
[1747243092414,67.46,174.5,174.41,5.5416]
[1747243092606,202.57986324,174.53,174.41,5.5416]
[1747243092607,135.21986324,174.53,174.41,5.5416]
[1747243092807,67.4,174.52,174.41,5.5416]
[1747243093015,135.21986324,174.53,174.41,5.5416]
[1747243093318,67.36,174.52,174.42,16.42102427]
[1747243093720,202.53986324,174.53,174.42,16.42102427]
[1747243094219,202.53986324,174.53,174.41,5.5416]
[1747243094719,202.53986324,174.53,174.41,1.839]
[1747243094925,5.7307,174.48,174.43,5.732]
[1747243095217,67.3,174.47,174.43,5.732]
[1747243095517,73.031,174.47,174.42,5.7323]
[1747243095717,67.3,174.47,174.4,67.36]
[1747243096514,1.9586,174.52,174.4,67.36]
[1747243096723,67.26,174.51,174.47,5.7306]
[1747243097022,1.9586,174.52,174.47,5.7306]
[1747243097213,72.9696,174.51,174.46,5.731]
[1747243097519,72.9696,174.51,174.4,67.36]
[1747243097520,67.24,174.51,174.4,67.36]
[1747243097715,135.21986324,174.53,174.4,67.36]
[1747243097911,135.21986324,174.53,174.48,5.7302]
[1747243098111,67.14,174.52,174.45,67.34]
[1747243098521,67.14,174.52,174.47,5.7305]
[1747243098820,67.34,174.54,174.45,67.34]
[1747243099021,67.16,174.53,174.45,67.34]
[1747243099321,67.2,174.54,174.45,67.34]
[1747243099520,67.2,174.54,174.51,5.7294]
[1747243099820,67.2,174.54,174.46,67.34]
[1747243100015,67.14,174.54,174.46,67.34]
[1747243100222,67.12,174.55,174.46,83.76102427]
[1747243100419,1.9217,174.59,174.46,83.76102427]
[1747243100723,67.16,174.6,174.5,16.42102427]
[1747243100916,67.16,174.6,174.51,71.1705]
[1747243101517,5.7272,174.58,174.51,76.8999]
[1747243101821,67.16,174.6,174.51,69.261]
[1747243102522,67.16,174.6,174.51,67.34]
[1747243102722,5.7279,174.56,174.51,67.34]
[1747243103216,5.7282,174.55,174.51,67.34]
[1747243104120,1.8265,174.59,174.51,67.34]
[1747243104622,5.729,174.53,174.51,67.34]
[1747243104821,1.8265,174.59,174.47,67.32]
[1747243104822,67.04,174.55,174.47,67.32]
[1747243105121,67.04,174.55,174.47,73.0506]
[1747243105921,5.7293,174.52,174.47,73.0506]
[1747243106316,5.7293,174.52,174.48,5.7304]
[1747243106521,5.7288,174.53,174.48,5.7304]
[1747243106724,67.04,174.55,174.48,5.7304]
[1747243107124,5.7293,174.52,174.48,5.7304]
[1747243107427,5.7293,174.52,174.47,73.0507]
[1747243107821,67.04,174.55,174.47,73.0507]
[1747243108019,67.04,174.55,174.47,67.32]
[1747243108619,67.32,174.57,174.47,67.32]
[1747243108620,66.78,174.56,174.47,67.32]
[1747243108819,5.7281,174.55,174.47,67.32]
[1747243109123,66.78,174.57,174.47,67.32]
[1747243109325,1.8265,174.59,174.47,67.32]
[1747243109523,66.74,174.61,174.49,16.42102427]
[1747243109726,66.74,174.61,174.52,5.729]
[1747243109926,66.74,174.61,174.53,67.32]
[1747243110128,5.7278,174.56,174.53,67.32]
[1747243110326,66.74,174.61,174.53,73.0488]
[1747243110523,5.7273,174.58,174.53,73.0488]
[1747243110721,66.74,174.61,174.53,73.0488]
[1747243111121,66.74,174.61,174.53,67.32]
[1747243111526,5.7281,174.56,174.53,67.32]
[1747243111728,66.74,174.61,174.53,67.32]
[1747243112531,5.7274,174.58,174.53,73.0485]
[1747243112734,5.7274,174.58,174.53,67.32]
[1747243113030,5.7276,174.57,174.53,73.0484]
[1747243113429,66.74,174.61,174.53,67.32]
[1747243113832,5.7278,174.56,174.53,67.32]
[1747243114135,66.74,174.61,174.53,67.32]
[1747243114336,83.16102427,174.61,174.49,66.72]
[1747243114833,11.4531,174.6,174.45,66.72]
[1747243115132,16.42102427,174.57,174.45,66.72]
[1747243115430,146.6962,174.56,174.41,66.72]
[1747243115635,5.7315,174.45,174.42,5.7323]
[1747243115831,66.64,174.48,174.42,5.7323]
[1747243116027,66.62,174.48,174.41,66.72]
[1747243116526,66.6,174.52,174.41,66.72]
[1747243117333,5.7311,174.46,174.41,72.4525]
[1747243117532,1.8189,174.51,174.41,66.72]
[1747243117835,5.7307,174.48,174.42,5.7323]
[1747243118235,68.56,174.47,174.41,66.72]
[1747243118438,5.7314,174.45,174.41,66.72]
[1747243118837,68.56,174.47,174.41,66.72]
[1747243119438,5.7311,174.46,174.41,72.4525]
[1747243119735,68.56,174.47,174.41,66.72]
[1747243120130,74.291,174.47,174.42,5.7323]
[1747243120333,5.731,174.47,174.42,5.7323]
[1747243120635,68.44,174.47,174.41,66.72]
[1747243120835,1.8189,174.51,174.41,66.72]
[1747243121137,68.42,174.5,174.41,66.72]
[1747243121634,1.924,174.55,174.41,135.1]
[1747243121838,74.1091,174.52,174.47,5.7305]
[1747243122037,74.1091,174.52,174.41,135.1]
[1747243122437,74.1091,174.52,174.47,5.7305]
[1747243122635,74.1091,174.52,174.41,135.1]
[1747243122837,1.924,174.55,174.41,135.1]
[1747243123033,68.32,174.54,174.41,135.1]
[1747243123337,5.7288,174.53,174.41,135.1]
[1747243123729,74.0485,174.54,174.43,16.42102427]
[1747243124037,3.6962,174.56,174.43,16.42102427]
[1747243124038,68.5561,174.56,174.44,1.8065]
[1747243124237,68.24,174.55,174.44,1.8065]
[1747243124434,68.5561,174.56,174.45,3.6397]
[1747243124633,68.34,174.55,174.46,66.74]
[1747243124839,1.8786,174.62,174.46,66.74]
[1747243125229,135.04,174.61,174.46,135.04]
[1747243125638,135.04,174.61,174.47,16.42102427]
[1747243125838,1.8786,174.62,174.47,16.42102427]
[1747243126035,5.7276,174.57,174.47,16.42102427]
[1747243126235,135.0,174.61,174.47,16.42102427]
[1747243126538,1.8786,174.62,174.47,16.42102427]
[1747243126738,134.9,174.61,174.54,5.7282]
[1747243126940,134.9,174.61,174.51,66.74]
[1747243127339,134.9,174.61,174.53,5.7287]
[1747243127545,5.7277,174.57,174.51,66.74]
[1747243127742,134.9,174.61,174.51,66.74]
[1747243129442,5.7285,174.54,174.51,66.74]
[1747243129944,68.0,174.57,174.53,5.7285]
[1747243130340,1.8786,174.62,174.53,5.7285]
[1747243130543,5.7269,174.59,174.51,66.74]
[1747243130844,73.6869,174.59,174.52,1.9138]
[1747243131044,67.92,174.6,174.52,1.9138]
[1747243131241,68.16,174.6,174.52,1.9138]
[1747243131546,5.7271,174.58,174.54,5.7282]
[1747243131843,68.16,174.6,174.52,1.9138]
[1747243132144,5.7271,174.58,174.54,5.7282]
[1747243132643,68.16,174.6,174.52,1.9138]
[1747243132945,68.16,174.6,174.51,66.74]
[1747243134444,5.728,174.56,174.52,5.7289]
[1747243134646,68.16,174.6,174.52,5.7289]
[1747243134944,68.16,174.6,174.51,66.74]
[1747243135147,5.7286,174.54,174.51,72.4694]
[1747243135348,67.8,174.55,174.51,66.74]
[1747243135544,67.78,174.55,174.51,66.74]
[1747243135852,67.78,174.55,174.46,66.74]
[1747243136047,1.7718,174.54,174.46,66.74]
[1747243136240,66.74,174.53,174.46,66.74]
[1747243136540,66.74,174.53,174.42,66.74]
[1747243136743,5.7307,174.48,174.42,66.74]
[1747243137147,67.78,174.49,174.42,66.74]
[1747243137353,5.7312,174.46,174.42,72.4721]
[1747243137857,66.74,174.48,174.37,66.74]
[1747243138452,5.7324,174.43,174.37,66.74]
[1747243138662,74.7724,174.43,174.37,66.74]
[1747243139158,69.04,174.43,174.4,5.733]
[1747243140360,69.04,174.43,174.37,66.74]
[1747243141159,135.78,174.43,174.34,1.892]
[1747243141454,5.7333,174.4,174.35,5.7346]
[1747243141666,5.7333,174.4,174.34,1.892]
[1747243141959,135.78,174.43,174.34,1.892]
[1747243142153,3.76,174.46,174.34,1.892]
[1747243142358,68.8,174.45,174.34,1.892]
[1747243142554,74.5316,174.45,174.34,1.892]
[1747243142863,3.76,174.46,174.34,1.892]
[1747243143061,68.76,174.45,174.34,18.31302427]
[1747243143254,1.8854,174.52,174.34,18.31302427]
[1747243143558,69.16,174.51,174.38,16.42102427]
[1747243143760,74.95,174.5,174.39,68.8]
[1747243144159,69.22,174.5,174.39,68.8]
[1747243144359,74.3511,174.52,174.39,68.8]
[1747243144661,69.14,174.51,174.39,68.8]
[1747243145056,5.7303,174.49,174.39,68.8]
[1747243145256,69.14,174.51,174.39,68.8]
[1747243146660,5.7313,174.46,174.39,68.8]
[1747243147466,5.7313,174.46,174.42,5.7321]
[1747243147764,5.7314,174.45,174.42,5.7321]
[1747243147966,69.14,174.51,174.42,5.7323]
[1747243148265,5.731,174.47,174.39,68.8]
[1747243148566,68.82,174.49,174.39,68.8]
[1747243148762,5.73,174.5,174.39,68.8]
[1747243149159,68.82,174.51,174.39,68.8]
[1747243149654,5.7306,174.48,174.44,5.7315]
[1747243150268,5.7302,174.49,174.45,5.7314]
[1747243150470,68.82,174.51,174.39,68.8]
[1747243152164,5.7298,174.5,174.39,68.8]
[1747243152369,68.82,174.51,174.4,1.9266]
[1747243152770,68.82,174.51,174.41,3.6937]
[1747243153265,5.7309,174.47,174.43,5.7318]
[1747243153567,68.82,174.54,174.41,3.6937]
[1747243153773,68.48,174.53,174.41,3.6937]
[1747243154473,5.7299,174.5,174.46,5.7309]
[1747243155372,5.7302,174.49,174.46,5.7309]
[1747243155975,5.7305,174.48,174.41,3.6937]
[1747243156469,5.7305,174.48,174.44,5.7315]
[1747243156665,5.7305,174.48,174.41,3.6937]
[1747243156868,5.7302,174.49,174.41,3.6937]
[1747243157064,68.48,174.53,174.41,3.6937]
[1747243157273,5.7301,174.49,174.41,3.6937]
[1747243157771,68.82,174.54,174.41,3.6937]
[1747243157969,68.38,174.53,174.42,68.38]
[1747243158464,5.7298,174.5,174.42,68.38]
[1747243158776,5.7298,174.5,174.46,5.7309]
[1747243159280,5.7305,174.48,174.45,5.7312]
[1747243159470,68.38,174.53,174.45,5.7312]
[1747243160678,5.7303,174.49,174.45,5.7312]
[1747243160971,68.38,174.53,174.46,5.7311]
[1747243161174,5.7296,174.51,174.44,68.82]
[1747243161478,68.82,174.54,174.44,68.82]
[1747243161670,73.9489,174.53,174.44,68.82]
[1747243161975,68.22,174.53,174.44,68.82]
[1747243163381,5.7291,174.52,174.44,68.82]
[1747243163578,68.22,174.53,174.44,68.82]
[1747243165171,68.22,174.53,174.39,68.8]
[1747243165373,16.42102427,174.52,174.39,68.8]
[1747243166181,5.7313,174.46,174.42,5.7322]
[1747243166481,67.98,174.45,174.39,68.8]
[1747243166682,5.7317,174.44,174.41,5.7325]
[1747243167078,67.98,174.45,174.39,68.8]
[1747243167974,67.98,174.45,174.35,495.24]
[1747243168478,5.7334,174.39,174.36,5.7343]
[1747243168682,67.82,174.4,174.36,5.7343]
[1747243169075,73.5533,174.4,174.36,5.7343]
[1747243169277,73.5533,174.4,174.34,68.82]
[1747243169779,5.7335,174.39,174.35,5.7344]
[1747243169979,67.82,174.4,174.34,68.82]
[1747243171083,67.72,174.4,174.37,5.7338]
[1747243172181,1.9565,174.47,174.34,68.82]
[1747243172376,135.2,174.46,174.34,68.82]
[1747243172880,5.7325,174.42,174.38,5.7335]
[1747243173381,67.52,174.41,174.34,68.82]
[1747243174781,5.7333,174.4,174.36,5.7341]
[1747243175381,5.7334,174.39,174.36,5.7341]
[1747243175683,67.52,174.41,174.36,5.7341]
[1747243176384,67.52,174.41,174.34,68.82]
[1747243176986,67.32,174.43,174.34,68.82]
[1747243177380,73.0521,174.43,174.34,68.82]
[1747243177987,73.0521,174.43,174.38,5.7334]
[1747243178387,5.7321,174.43,174.34,68.82]
[1747243178585,5.7324,174.42,174.34,68.82]
[1747243179288,5.7324,174.42,174.38,5.7336]
[1747243179491,67.16,174.43,174.34,68.82]
[1747243179787,67.16,174.43,174.37,5.7338]
[1747243179984,5.7325,174.42,174.34,68.82]
[1747243180487,5.7327,174.41,174.34,68.82]
[1747243180690,67.16,174.43,174.34,68.82]
[1747243181189,1.9565,174.47,174.34,68.82]
[1747243181486,67.22,174.46,174.34,68.82]
[1747243181688,5.7316,174.45,174.41,5.7325]
[1747243181878,69.5565,174.47,174.34,68.82]
[1747243182084,67.22,174.47,174.36,16.42102427]
[1747243182280,67.22,174.47,174.44,5.7316]
[1747243182789,67.6,174.5,174.4,67.6]
[1747243182790,67.18,174.5,174.4,67.6]
[1747243183286,5.7302,174.49,174.4,67.6]
[1747243183490,67.18,174.5,174.4,67.6]
[1747243183791,72.91,174.5,174.4,67.6]
[1747243184086,1.8257,174.54,174.44,16.42102427]
[1747243184294,67.06,174.54,174.5,5.7295]
[1747243184593,67.06,174.54,174.45,73.1312]
[1747243184889,67.06,174.54,174.52,5.7289]
[1747243185089,67.06,174.54,174.45,73.1312]
[1747243185891,72.7885,174.54,174.5,5.7297]
[1747243186088,67.06,174.54,174.45,73.1312]
[1747243186391,5.7294,174.51,174.47,5.7305]
[1747243186588,5.7294,174.51,174.45,71.3243]
[1747243186788,67.06,174.54,174.45,71.3243]
[1747243187290,66.82,174.55,174.45,71.3243]
[1747243187490,72.5277,174.57,174.45,71.3243]
[1747243187699,66.8,174.57,174.45,71.3243]
[1747243187986,70.5082,174.59,174.56,5.7276]
[1747243188194,3.7282,174.59,174.51,67.6]
[1747243188793,3.7282,174.59,174.55,5.7279]
[1747243189183,9.4552,174.59,174.51,67.6]
[1747243189387,3.7282,174.59,174.51,67.6]
[1747243189795,3.7282,174.59,174.55,5.7281]
[1747243190493,66.66,174.6,174.51,67.6]
[1747243190693,66.66,174.6,174.35,53.78225223]
[1747243190894,609.74999967,174.59,174.4,16.49739967]
[1747243191096,68.5645,174.58,174.41,5.6308]
[1747243191297,68.5645,174.58,174.41,567.5708]
[1747243191492,68.5645,174.58,174.47,5.7307]
[1747243191691,5.7288,174.54,174.48,67.58]
[1747243191888,66.64,174.53,174.48,67.58]
[1747243192299,5.7291,174.52,174.48,67.58]
[1747243192498,66.64,174.53,174.48,67.58]
[1747243193097,5.7298,174.5,174.48,67.58]
[1747243193286,66.64,174.53,174.48,67.58]
[1747243193492,5.7301,174.49,174.48,67.58]
[1747243193692,66.64,174.53,174.48,67.58]
[1747243194187,5.7299,174.5,174.48,67.58]
[1747243194389,66.64,174.53,174.48,67.58]
[1747243195098,5.73,174.5,174.48,67.58]
[1747243195300,66.64,174.53,174.48,67.58]
[1747243195695,5.7298,174.5,174.48,67.58]
[1747243196601,5.7301,174.49,174.48,67.58]
[1747243199903,66.06,174.54,174.48,67.58]
[1747243200804,5.7298,174.5,174.48,67.58]
[1747243201104,66.06,174.54,174.48,67.58]
[1747243201499,66.06,174.54,174.48,73.3104]
[1747243201799,65.92,174.57,174.48,67.58]
[1747243202004,71.6477,174.57,174.52,5.7289]
[1747243202198,71.6477,174.57,174.53,67.58]
[1747243202605,5.7278,174.56,174.53,67.58]
[1747243202800,65.92,174.57,174.53,67.58]
[1747243204808,5.7278,174.56,174.53,67.58]
[1747243205304,65.92,174.57,174.53,67.58]
[1747243205305,71.6475,174.57,174.53,67.58]
[1747243205603,65.92,174.57,174.53,67.58]
[1747243205809,1.9472,174.62,174.53,67.58]
[1747243206201,65.6,174.61,174.53,67.58]
[1747243206402,5.728,174.56,174.53,67.58]
[1747243206706,65.56,174.6,174.53,67.58]
[1747243206906,5.7275,174.57,174.53,67.58]
[1747243207204,5.7275,174.57,174.53,73.3087]
[1747243207506,5.7278,174.56,174.53,73.3087]
[1747243207705,65.54,174.6,174.53,67.58]
[1747243207907,1.9472,174.62,174.53,67.58]
[1747243208102,5.7277,174.57,174.53,73.3087]
[1747243208503,65.46,174.61,174.53,67.58]
[1747243208807,65.42,174.6,174.53,67.58]
[1747243209203,5.7279,174.56,174.53,67.58]
[1747243209412,65.42,174.6,174.53,67.58]
[1747243210107,5.7284,174.54,174.53,67.58]
[1747243211611,65.3,174.59,174.56,5.7275]
[1747243212215,1.9472,174.62,174.56,5.7275]
[1747243212407,65.28,174.61,174.53,67.58]
[1747243212706,65.28,174.62,174.53,67.58]
[1747243212907,5.7255,174.63,174.59,5.7265]
[1747243213107,65.28,174.64,174.58,65.86]
[1747243213304,65.28,174.64,174.57,65.86]
[1747243213305,5.727,174.59,174.57,65.86]
[1747243213514,65.28,174.64,174.57,65.86]
[1747243213813,65.36,174.63,174.57,65.86]
[1747243214213,71.3988,174.67,174.57,65.86]
[1747243214410,65.4,174.66,174.57,65.86]
[1747243214708,5.7261,174.62,174.59,5.7267]
[1747243214916,65.4,174.66,174.57,65.86]
[1747243215716,5.7261,174.62,174.58,5.727]
[1747243216015,65.4,174.66,174.57,65.86]
[1747243216319,5.7264,174.61,174.57,65.86]
[1747243216714,5.7262,174.61,174.58,5.727]
[1747243216914,65.22,174.63,174.57,65.86]
[1747243217118,65.24,174.64,174.57,65.86]
[1747243217320,5.5388,174.67,174.6,5.7262]
[1747243217519,65.22,174.64,174.57,65.86]
[1747243218018,65.22,174.64,174.56,65.84]
[1747243218319,5.7264,174.61,174.57,5.7272]
[1747243218820,65.22,174.64,174.56,65.84]
[1747243219020,5.726,174.62,174.56,65.84]
[1747243219220,65.16,174.63,174.56,65.84]
[1747243220121,5.7269,174.59,174.56,71.5675]
[1747243220720,5.7272,174.58,174.56,71.5675]
[1747243221420,5.7275,174.57,174.56,65.84]
[1747243221719,65.08,174.58,174.52,65.84]
[1747243222019,5.7287,174.54,174.52,65.84]
[1747243223015,5.7288,174.53,174.52,65.84]
[1747243224729,3.8407,174.57,174.43,5.4597]
[1747243224926,64.86,174.53,174.47,65.84]
[1747243225219,1.8246,174.52,174.43,71.5719]
[1747243225417,5.731,174.47,174.43,71.5719]
[1747243225617,64.88,174.48,174.43,65.84]
[1747243226011,5.7298,174.5,174.47,5.7305]
[1747243226214,64.98,174.51,174.43,65.84]
[1747243226619,64.98,174.51,174.49,5.7298]
[1747243227413,65.0,174.53,174.48,65.84]
[1747243227721,5.7293,174.52,174.48,71.5702]
[1747243227918,64.98,174.53,174.48,65.84]
[1747243228223,64.94,174.55,174.48,65.84]
[1747243228425,1.8109,174.62,174.48,65.84]
[1747243228617,5.7274,174.58,174.54,5.7283]
[1747243229023,5.7274,174.58,174.53,65.86]
[1747243229321,65.0,174.61,174.53,65.86]
[1747243229725,5.7268,174.59,174.55,5.7279]
[1747243230019,65.0,174.61,174.53,65.86]
[1747243230316,5.7252,174.64,174.53,65.86]
[1747243230523,64.94,174.65,174.54,70.5302]
[1747243231120,64.94,174.65,174.6,5.7262]
[1747243231321,64.94,174.65,174.6,71.5862]
[1747243231617,64.94,174.65,174.6,65.86]
[1747243232016,64.94,174.65,174.61,5.7259]
[1747243232218,64.94,174.65,174.6,65.86]
[1747243232520,5.7242,174.67,174.62,5.7256]
[1747243232720,5.7242,174.67,174.6,65.86]
[1747243233223,64.88,174.68,174.6,65.86]
[1747243233723,5.7256,174.63,174.6,65.86]
[1747243234026,64.88,174.68,174.6,65.86]
[1747243234620,3.6576,174.72,174.6,65.86]
[1747243234826,64.96,174.71,174.6,71.5862]
[1747243235025,64.96,174.71,174.6,65.86]
[1747243235522,5.7248,174.66,174.6,65.86]
[1747243235726,64.9,174.69,174.6,65.86]
[1747243236226,64.94,174.7,174.6,65.86]
[1747243236623,5.7245,174.67,174.62,5.7256]
[1747243236820,64.94,174.7,174.61,64.82]
[1747243237123,65.02,174.71,174.61,64.82]
[1747243237321,65.02,174.71,174.62,1.8025]
[1747243237522,18.20761333,174.76,174.62,5.5893]
[1747243237724,65.02,174.75,174.63,16.49465452]
[1747243238523,65.02,174.75,174.65,5.7248]
[1747243238725,65.02,174.75,174.66,64.8]
[1747243239025,5.7234,174.7,174.66,64.8]
[1747243239727,5.7236,174.69,174.66,64.8]
[1747243239924,65.02,174.75,174.66,64.8]
[1747243240323,5.7242,174.67,174.66,64.8]
[1747243240824,5.7249,174.65,174.62,64.8]
[1747243241424,5.7249,174.65,174.62,70.5258]
[1747243241729,65.1,174.64,174.57,64.8]
[1747243242127,5.727,174.59,174.57,64.8]
[1747243242524,65.1,174.64,174.57,64.8]
[1747243242926,65.1,174.64,174.57,70.5272]
[1747243243229,65.1,174.64,174.57,64.8]
[1747243243630,65.42,174.67,174.57,64.8]
[1747243244232,5.7247,174.66,174.57,64.8]
[1747243244726,71.1035,174.69,174.57,130.18]
[1747243244929,65.38,174.69,174.58,3.7633]
[1747243245130,65.38,174.69,174.63,5.7252]
[1747243245322,5.7241,174.68,174.64,64.8]
[1747243246229,5.7241,174.68,174.64,70.5249]
[1747243246732,65.38,174.69,174.64,70.5249]
[1747243246935,65.38,174.69,174.64,64.8]
[1747243247433,130.18,174.69,174.6,64.8]
[1747243247634,130.18,174.69,174.6,70.5262]
[1747243247838,130.18,174.69,174.6,64.8]
[1747243248533,130.18,174.69,174.56,64.8]
[1747243248534,16.49465452,174.67,174.56,64.8]
[1747243249828,5.7273,174.58,174.56,64.8]
[1747243250235,65.32,174.59,174.56,64.8]
[1747243250832,16.49465452,174.71,174.56,64.8]
[1747243251037,3.8262,174.7,174.56,130.04]
[1747243251230,3.8262,174.7,174.57,3.7182]
[1747243251426,65.24,174.69,174.57,3.7182]
[1747243251732,5.7244,174.67,174.57,3.7182]
[1747243251934,65.24,174.69,174.57,3.7182]
[1747243252238,5.7247,174.66,174.63,5.7253]
[1747243252430,5.7247,174.66,174.61,64.8]
[1747243252836,5.7247,174.66,174.63,5.7253]
[1747243253136,5.7243,174.67,174.61,64.8]
[1747243253438,65.24,174.69,174.61,64.8]
[1747243253633,5.7246,174.66,174.61,64.8]
[1747243254137,5.7246,174.66,174.63,5.7253]
[1747243255432,65.24,174.69,174.61,64.8]
[1747243255836,5.7249,174.65,174.62,5.7257]
[1747243256037,65.24,174.69,174.62,5.7257]
[1747243256232,65.24,174.69,174.61,64.8]
[1747243256536,5.7254,174.64,174.61,70.526]
[1747243256732,65.24,174.69,174.61,64.8]
[1747243256926,65.24,174.69,174.57,68.5182]
[1747243257225,65.24,174.69,174.57,66.6526]
[1747243257430,65.24,174.69,174.57,64.8]
[1747243257736,5.7269,174.59,174.57,64.8]
[1747243258034,64.86,174.61,174.57,64.8]
[1747243258234,5.7267,174.6,174.58,5.7271]
[1747243258732,5.7265,174.6,174.57,64.8]
[1747243259136,64.86,174.61,174.57,64.8]
[1747243259336,64.86,174.61,174.6,5.7265]
[1747243259536,64.84,174.65,174.57,64.8]
[1747243259837,64.84,174.65,174.57,129.64]
[1747243260038,70.5648,174.65,174.57,129.64]
[1747243260440,70.5648,174.65,174.61,5.7259]
[1747243260641,5.7252,174.64,174.57,129.64]
[1747243260841,64.84,174.65,174.57,129.64]
[1747243261140,64.84,174.65,174.59,5.7268]
[1747243261340,5.7259,174.62,174.59,5.7268]
[1747243261533,64.84,174.65,174.57,64.8]
[1747243261733,5.7252,174.64,174.57,64.8]
[1747243262141,5.7252,174.64,174.6,5.7263]
[1747243262437,64.84,174.65,174.57,64.8]
[1747243262640,64.84,174.65,174.58,5.727]
[1747243262936,5.7264,174.61,174.57,64.8]
[1747243263337,64.84,174.65,174.57,64.8]
[1747243263941,64.84,174.65,174.57,70.5273]
[1747243264451,64.84,174.65,174.57,64.8]
[1747243264842,5.7268,174.59,174.57,70.5274]
[1747243265042,64.66,174.6,174.57,64.8]
[1747243265745,1.7847,174.66,174.57,64.8]
[1747243265939,5.7258,174.63,174.57,64.8]
[1747243266144,64.68,174.65,174.57,64.8]
[1747243267543,5.7271,174.58,174.57,64.8]
[1747243268749,64.66,174.59,174.57,64.8]
[1747243269647,70.3868,174.59,174.57,64.8]
[1747243269846,64.66,174.59,174.57,64.8]
[1747243270349,5.7273,174.58,174.55,5.728]
[1747243270651,64.66,174.59,174.53,64.72]
[1747243271153,70.387,174.59,174.56,5.7276]
[1747243271647,70.387,174.59,174.55,5.728]
[1747243271648,5.7272,174.58,174.55,5.728]
[1747243272048,5.7272,174.58,174.53,64.72]
[1747243273251,5.7277,174.57,174.53,64.72]
[1747243273446,5.7277,174.57,174.51,1.9175]
[1747243273447,64.72,174.58,174.46,64.72]
[1747243273749,1.7743,174.56,174.48,5.7302]
[1747243273949,1.7743,174.56,174.46,64.72]
[1747243274146,68.527,174.58,174.46,64.72]
[1747243275655,5.7299,174.5,174.47,5.7305]
[1747243276347,5.7299,174.5,174.48,5.7304]
[1747243276548,5.7295,174.51,174.46,64.72]
[1747243277048,5.7299,174.5,174.46,64.72]